fUSD/lending_fUSD_20260202
["ID","MTS","AMOUNT","RATE_DAILY","PERIOD"]
[404303155,1770049842338,-201.8,0.00013698,2]
[404303156,1770049842348,-520.9392261,0.00013698,2]
[404303157,1770049842357,-500.0,0.00013698,2]
[404303158,1770049842366,-500.0,0.00013698,2]
[404303159,1770049842375,-500.0,0.00013698,2]
[404303160,1770049842384,-469.64985738,0.00013698,2]
[404303161,1770049842393,-535.53919898,0.00013698,2]
[404303162,1770049842403,-500.0,0.00013698,2]
[404303163,1770049842412,-500.0,0.00013698,2]
[404303164,1770049842421,-500.0,0.00013698,2]
[404303165,1770049842430,-500.0,0.00013698,2]
[404303166,1770049842440,-500.0,0.00013698,2]
[404303167,1770049842449,-500.0,0.00013698,2]
[404303168,1770049842458,-500.0,0.00013698,2]
[404303170,1770049842467,-500.0,0.00013698,2]
[404303171,1770049842476,-500.0,0.00013698,2]
[404303172,1770049842486,-500.0,0.00013698,2]
[404303173,1770049842495,-500.0,0.00013698,2]
[404303174,1770049842504,-500.0,0.00013698,2]
[404303175,1770049842518,-500.0,0.00013698,2]
[404303176,1770049842526,-500.0,0.00013698,2]
[404303177,1770049842536,-500.0,0.00013698,2]
[404303178,1770049842545,-500.0,0.00013698,2]
[404303179,1770049842554,-500.0,0.00013698,2]
[404303180,1770049842563,-500.0,0.00013698,2]
[404303181,1770049842572,-561.99539873,0.00013698,2]
[404303182,1770049842582,-2800.26,0.00013699,2]
[404303183,1770049842591,-1000.0,0.000137,2]
[404303184,1770049842600,-1000.0,0.000138,2]
[404303185,1770049842609,-30029.94021378,0.00013855,2]
[404303186,1770049842618,-22408.31977454,0.00013855,2]
[404303187,1770049842627,-200.0,0.00013888,2]
[404303188,1770049842635,-500.0,0.00013888,2]
[404303189,1770049842646,-1000.0,0.000139,2]
[404303190,1770049842655,-266.83,0.00013929,2]
[404303191,1770049842664,-170.36367963,0.00013973,2]
[404303192,1770049842677,-500.0,0.00013973,2]
[404303193,1770049842686,-543.12258786,0.00013973,2]
[404303194,1770049842696,-164.70227396,0.00013973,2]
[404303195,1770049842705,-500.0,0.00013973,2]
[404303196,1770049842714,-500.0,0.00013973,2]
[404303197,1770049842724,-541.62569807,0.00013973,2]
[404303198,1770049842733,-500.0,0.00013973,2]
[404303199,1770049842742,-569.16951839,0.00013973,2]
[404303200,1770049842751,-500.0,0.00013973,2]
[404303201,1770049842761,-500.0,0.00013973,2]
[404303202,1770049842770,-500.0,0.00013973,2]
[404303203,1770049842780,-500.0,0.00013973,2]
[404303204,1770049842790,-500.0,0.00013973,2]
[404303205,1770049842799,-544.91692471,0.00013973,2]
[404303206,1770049842809,-500.0,0.00013973,2]
[404303207,1770049842818,-500.0,0.00013973,2]
[404303208,1770049842827,-500.12230816,0.00013973,2]
[404303209,1770049842838,-500.0,0.00013973,2]
[404303210,1770049842848,-259.40505883,0.00013973,2]
[404303211,1770049842857,-500.0,0.00013973,2]
[404303212,1770049842866,-500.0,0.00013973,2]
[404303213,1770049842876,-500.0,0.00013973,2]
[404303214,1770049842886,-181.57502123,0.00013973,2]
[404303215,1770049842897,-500.0,0.00013973,2]
[404303216,1770049842906,-500.0,0.00013973,2]
[404303217,1770049842916,-500.0,0.00013973,2]
[404303218,1770049842929,-500.0,0.00013973,2]
[404303219,1770049842938,-163.90719075,0.00013973,2]
[404303220,1770049842948,-500.0,0.00013973,2]
[404303221,1770049842958,-500.0,0.00013973,2]
[404303222,1770049842968,-500.0,0.00013973,2]
[404303223,1770049842978,-500.0,0.00013973,2]
[404303224,1770049842987,-500.0,0.00013973,2]
[404303225,1770049842998,-1000.0,0.00014,2]
[404303226,1770049843007,-200.896366,0.00014,2]
[404303227,1770049843016,-1000.0,0.000141,2]
[404303228,1770049843026,-1000.0,0.000142,2]
[404303229,1770049843035,-486.90065282,0.00014236,2]
[404303230,1770049843043,-313.45864486,0.00014255,2]
[404303231,1770049843053,-205.0150533,0.0001426,2]
[404303232,1770049843062,-22966.6833,0.00014271,2]
[404303233,1770049843071,-500.0,0.00014274,2]
[404303234,1770049843080,-1000.0,0.000143,2]
[404303235,1770049843090,-500.0,0.00014356,2]
[404303236,1770049843099,-10331.11610173,0.0001439,2]
[404303237,1770049843108,-1000.0,0.000144,2]
[404303238,1770049843117,-30029.94021378,0.00014433,2]
[404303239,1770049843126,-668.91463451,0.00014433,2]
[404303240,1770049843135,-22408.31977454,0.00014433,2]
[404303241,1770049843144,-220.62335577,0.00014436,2]
[404303242,1770049843153,-500.0,0.00014436,2]
[404303243,1770049843162,-587.0,0.00014478,2]
[404303244,1770049843171,-480.0,0.00014478,2]
[404303245,1770049843181,-1000.0,0.000145,2]
[404303246,1770049843190,-98441.87394799,0.000145,2]
[404303247,1770049843199,-501.171316,0.00014521,2]
[404303248,1770049843208,-1000.0,0.00014521,2]
[404303249,1770049843217,-233.72893135,0.00014521,2]
[404303250,1770049843226,-1000.0,0.00014521,2]
[404303251,1770049843235,-1000.0,0.00014521,2]
[404303252,1770049843245,-1037.01217783,0.00014521,2]
[404303253,1770049843254,-1000.0,0.00014521,2]
[404303254,1770049843264,-1000.0,0.00014521,2]
[404303255,1770049843273,-1000.0,0.00014521,2]
[404303256,1770049843283,-1000.0,0.00014521,2]
[404303257,1770049843292,-1000.0,0.00014521,2]
[404303258,1770049843301,-501.77480883,0.00014521,2]
[404303259,1770049843310,-1000.0,0.00014521,2]
[404303260,1770049843320,-156.95111861,0.00014521,2]
[404303261,1770049843329,-723.77841226,0.00014521,2]
[404303262,1770049843339,-548.87500636,0.00014521,2]
[404303263,1770049843348,-1020.60707483,0.00014521,2]
[404303264,1770049843358,-1000.0,0.00014521,2]
[404303265,1770049843367,-911.8365552,0.00014521,2]
[404303266,1770049843377,-1000.0,0.00014521,2]
[404303267,1770049843386,-152.81544497,0.00014521,2]
[404303268,1770049843397,-546.2635897,0.00014521,2]
[404303269,1770049843406,-1000.0,0.00014521,2]
[404303270,1770049843415,-1000.0,0.00014521,2]
[404303271,1770049843424,-2351.0,0.00014537,2]
[404303272,1770049843433,-1000.0,0.000146,2]
[404303273,1770049843443,-433.0,0.00014601,2]
[404303274,1770049843452,-266.83,0.00014662,2]
[404303275,1770049843461,-151.0,0.00014666,2]
[404303276,1770049843470,-1000.0,0.000147,2]
[404303277,1770049843479,-151.0,0.00014786,2]
[404303278,1770049843489,-151.0,0.0001479,2]
[404303279,1770049843499,-151.0,0.0001479,2]
[404303280,1770049843508,-151.0,0.0001479,2]
[404303281,1770049843517,-151.0,0.00014797,2]
[404303282,1770049843526,-151.0,0.00014797,2]
[404303283,1770049843535,-1000.0,0.000148,2]
[404303284,1770049843546,-151.0,0.00014801,2]
[404303285,1770049843555,-151.0,0.00014801,2]
[404303286,1770049843564,-256.85,0.00014801,2]
[404303287,1770049843574,-151.0,0.00014804,2]
[404303288,1770049843583,-151.0,0.00014804,2]
[404303289,1770049843593,-151.0,0.00014804,2]
[404303290,1770049843604,-1000.0,0.000149,2]
[404303291,1770049843615,-179.5507367,0.000149,2]
[404303292,1770049843625,-500.0,0.00014959,2]
[404303293,1770049843635,-500.0,0.00014984,2]
[404303294,1770049843645,-1000.0,0.00015,2]
[404303295,1770049843655,-681.75697604,0.00015,2]
[404303296,1770049843664,-6770.64481546,0.00015,2]
[404303297,1770049843674,-28800.83718944,0.00015,2]
[404303298,1770049843683,-418.0702292,0.00015,2]
[404303299,1770049843692,-250.0,0.00015,2]
[404303300,1770049843701,-30029.94021378,0.00015011,2]
[404303301,1770049843711,-22408.31977454,0.00015011,2]
[404303302,1770049843720,-1600.0,0.0001502,2]
[404303303,1770049843730,-486.90065282,0.00015068,2]
[404303304,1770049843739,-582.73923754,0.00015068,2]
[404303305,1770049843748,-506.79391477,0.00015068,2]
[404303306,1770049843758,-1500.0,0.00015068,2]
[404303307,1770049843767,-1500.0,0.00015068,2]
[404303308,1770049843776,-617.67942522,0.00015068,2]
[404303309,1770049843785,-453.96398478,0.00015068,2]
[404303310,1770049843794,-1500.0,0.00015068,2]
[404303311,1770049843803,-1500.0,0.00015068,2]
[404303312,1770049843812,-1500.0,0.00015068,2]
[404303314,1770049843822,-1013.1611986,0.00015068,2]
[404303316,1770049843831,-1500.0,0.00015068,2]
[404303318,1770049843840,-1500.0,0.00015068,2]
[404303320,1770049843849,-854.38080813,0.00015068,2]
[404303323,1770049843858,-1000.0,0.000151,2]
[404303325,1770049843867,-1000.0,0.000152,2]
[404303327,1770049843877,-750.82968754,0.0001526,2]
[404303329,1770049843887,-230.25111397,0.00015286,2]
[404303331,1770049843897,-773.23,0.00015294,2]
[404303333,1770049843906,-668.91463451,0.000153,2]
[404303335,1770049843916,-1000.0,0.000153,2]
[404303337,1770049843929,-1517.64,0.000153,2]
[404303338,1770049843940,-266.83,0.00015395,2]
[404303339,1770049843950,-1000.0,0.000154,2]
[404303340,1770049843961,-163.46067997,0.00015473,2]
[404303341,1770049843970,-500.0,0.00015473,2]
[404303343,1770049843979,-500.0,0.00015473,2]
[404303344,1770049843989,-500.0,0.00015473,2]
[404303346,1770049843998,-500.0,0.00015473,2]
[404303347,1770049844007,-500.0,0.00015473,2]
[404303348,1770049844016,-500.0,0.00015473,2]
[404303349,1770049844025,-500.0,0.00015473,2]
[404303350,1770049844033,-200.70028911,0.00015473,2]
[404303351,1770049844043,-500.0,0.00015473,2]
[404303352,1770049844053,-336.43827265,0.00015473,2]
[404303353,1770049844063,-161.45537985,0.00015473,2]
[404303354,1770049844073,-500.0,0.00015473,2]
[404303355,1770049844082,-500.0,0.00015473,2]
[404303356,1770049844091,-500.0,0.00015473,2]
[404303357,1770049844100,-500.0,0.00015473,2]
[404303358,1770049844109,-500.0,0.00015473,2]
[404303359,1770049844119,-500.0,0.00015473,2]
[404303360,1770049844128,-500.63586771,0.00015473,2]
[404303361,1770049844137,-500.0,0.00015473,2]
[404303362,1770049844147,-500.0,0.00015473,2]
[404303363,1770049844157,-500.0,0.00015473,2]
[404303364,1770049844166,-522.30858015,0.00015473,2]
[404303365,1770049844175,-500.6120606,0.00015473,2]
[404303366,1770049844184,-500.62768041,0.00015473,2]
[404303367,1770049844193,-559.67308476,0.00015473,2]
[404303368,1770049844202,-500.0,0.00015473,2]
[404303369,1770049844211,-512.94754167,0.00015473,2]
[404303370,1770049844220,-500.41005015,0.00015473,2]
[404303371,1770049844229,-163.34993731,0.00015473,2]
[404303372,1770049844238,-163.12661798,0.00015473,2]
[404303373,1770049844247,-500.46237197,0.00015473,2]
[404303374,1770049844256,-500.0,0.00015473,2]
[404303375,1770049844266,-500.0,0.00015473,2]
[404303376,1770049844275,-500.0,0.00015473,2]
[404303377,1770049844285,-500.0,0.00015473,2]
[404303378,1770049844294,-500.0,0.00015473,2]
[404303379,1770049844303,-500.0,0.00015473,2]
[404303380,1770049844312,-500.0,0.00015473,2]
[404303381,1770049844321,-486.90150068,0.00015473,2]
[404303382,1770049844329,-500.40906893,0.00015473,2]
[404303383,1770049844338,-464.35211832,0.00015473,2]
[404303384,1770049844347,-500.0,0.00015473,2]
[404303385,1770049844356,-151.07783782,0.00015473,2]
[404303386,1770049844365,-160.54295648,0.00015473,2]
[404303387,1770049844375,-500.0,0.00015473,2]
[404303388,1770049844385,-500.0,0.00015473,2]
[404303389,1770049844394,-500.0,0.00015473,2]
[404303390,1770049844408,-500.0,0.00015473,2]
[404303391,1770049844417,-500.0,0.00015473,2]
[404303392,1770049844427,-500.0,0.00015473,2]
[404303393,1770049844436,-500.0,0.00015473,2]
[404303394,1770049844445,-574.06272579,0.00015473,2]
[404303395,1770049844455,-500.0,0.00015473,2]
[404303396,1770049844465,-500.0,0.00015473,2]
[404303397,1770049844475,-500.0,0.00015473,2]
[404303398,1770049844679,-500.0,0.00015473,2]
[404303399,1770049844689,-500.0,0.00015473,2]
[404303400,1770049844699,-550.09529227,0.00015473,2]
[404303401,1770049844708,-500.0,0.00015473,2]
[404303402,1770049844717,-500.0,0.00015473,2]
[404303403,1770049844727,-185.46503654,0.00015473,2]
[404303404,1770049844736,-565.00011393,0.00015473,2]
[404303405,1770049844746,-500.0,0.00015473,2]
[404303406,1770049844756,-500.0,0.00015473,2]
[404303407,1770049844765,-500.0,0.00015473,2]
[404303408,1770049844775,-500.0,0.00015473,2]
[404303409,1770049844786,-500.0,0.00015473,2]
[404303410,1770049844796,-500.0,0.00015473,2]
[404303411,1770049844806,-500.0,0.00015473,2]
[404303412,1770049844817,-500.0,0.00015473,2]
[404303413,1770049844826,-500.0,0.00015473,2]
[404303414,1770049844836,-4173.74670489,0.00015473,2]
[404303415,1770049844847,-649.36910503,0.00015473,2]
[404303416,1770049844859,-174.48261702,0.00015473,2]
[404303417,1770049844868,-1273.29157306,0.00015473,2]
[404303418,1770049844878,-1000.0,0.000155,2]
[404303419,1770049844887,-319.0,0.00015507,2]
[404303420,1770049844899,-500.0,0.00015532,2]
[404303421,1770049844909,-868.9,0.00015568,2]
[404303422,1770049844921,-773.23,0.00015568,2]
[404303423,1770049844931,-30029.94021378,0.00015588,2]
[404303424,1770049844941,-22408.31977454,0.00015588,2]
[404303425,1770049844951,-1000.0,0.000156,2]
[404303426,1770049844960,-2000.0,0.00015616,2]
[404303427,1770049844971,-1002.17701724,0.00015616,2]
[404303428,1770049844980,-1270.24622109,0.00015616,2]
[404303429,1770049844990,-812.26829567,0.00015616,2]
[404303430,1770049845000,-1809.50611672,0.00015616,2]
[404303431,1770049845010,-2000.0,0.00015616,2]
[404303432,1770049845021,-2000.0,0.00015616,2]
[404303433,1770049845031,-159.65843549,0.00015634,2]
[404303434,1770049845041,-250.0,0.0001565,2]
[404303435,1770049845051,-1000.0,0.000157,2]
[404303436,1770049845061,-1000.0,0.000158,2]
[404303437,1770049845072,-500.0,0.000158,5]
[404303438,1770049845083,-868.9,0.00015842,2]
[404303439,1770049845092,-773.23,0.00015842,2]
[404303440,1770049845102,-336.97,0.00015854,2]
[404303441,1770049845112,-736.0,0.00015883,2]
[404303442,1770049845122,-823.0,0.00015893,2]
[404303443,1770049845133,-1000.0,0.000159,2]
[404303444,1770049845144,-500.0,0.000159,5]
[404303445,1770049845154,-205.0150533,0.000159,2]
[404303446,1770049845164,-486.90065282,0.000159,2]
[404303447,1770049845174,-5000.0,0.0001596,2]
[404303448,1770049845185,-309.49683369,0.0001599,2]
[404303449,1770049845195,-3292.0,0.00015991,2]
[404303450,1770049845205,-151.0,0.00015997,2]
[404303451,1770049845215,-151.0,0.00015997,2]
[404303452,1770049845225,-1000.0,0.00016,2]
[404303453,1770049845234,-180.32731369,0.00016,2]
[404303454,1770049845244,-956.83032625,0.00016,2]
[404303455,1770049845254,-270.91542523,0.00016,2]
[404303456,1770049845264,-421.15115649,0.00016,2]
[404303457,1770049845275,-612018.16389536,0.00016,4]
[404303462,1770049845556,-85000.00000001,0.00016,4]
[404303463,1770049845576,-2473.13499175,0.00016,4]
[404303464,1770049845588,-9015.90000001,0.00016,4]
[404303465,1770049845600,-936.67,0.00016,4]
[404303466,1770049845612,-17003.80000001,0.00016,4]
[404303472,1770049845750,-1981.37,0.00016,4]
[404303473,1770049845762,-1032.5903054,0.00016,4]
[404303474,1770049845773,-15350.2,0.00016,4]
[404303475,1770049845785,-1262.49999999,0.00016,4]
[404303476,1770049845800,-1553.73338953,0.00016,4]
[404303477,1770049845811,-586.80897448,0.00016,4]
[404303478,1770049845822,-1000.04798855,0.00016,4]
[404303479,1770049845856,-2125.0,0.00016,4]
[404303482,1770049845868,-4077415.62703578,0.00016,4]
[404303483,1770049845877,-200.0,0.00016,2]
[404303484,1770049845887,-1000.0,0.00016021,2]
[404303485,1770049845897,-1000.0,0.00016021,2]
[404303486,1770049845906,-1000.0,0.00016021,2]
[404303487,1770049845917,-826.63399032,0.00016021,2]
[404303488,1770049845930,-293.82457575,0.00016021,2]
[404303489,1770049845940,-1000.0,0.00016021,2]
[404303490,1770049845949,-305.41786048,0.00016021,2]
[404303491,1770049845960,-1003.32803614,0.00016021,2]
[404303492,1770049845971,-1000.0,0.00016021,2]
[404303493,1770049845980,-1000.0,0.00016021,2]
[404303494,1770049845991,-1000.0,0.00016021,2]
[404303495,1770049846002,-1000.0,0.00016021,2]
[404303496,1770049846012,-1000.0,0.00016021,2]
[404303497,1770049846022,-1000.0,0.00016021,2]
[404303498,1770049846031,-1000.0,0.00016021,2]
[404303499,1770049846040,-1082.33207666,0.00016021,2]
[404303500,1770049846049,-1040.54063963,0.00016021,2]
[404303501,1770049846060,-769.8904873,0.00016021,2]
[404303502,1770049846069,-843.37022852,0.00016021,2]
[404303503,1770049846080,-501.6324076,0.00016021,2]
[404303504,1770049846089,-1000.0,0.00016021,2]
[404303505,1770049846099,-513.51105773,0.00016021,2]
[404303506,1770049846108,-1000.0,0.00016021,2]
[404303507,1770049846118,-371.34493106,0.00016021,2]
[404303508,1770049846128,-1000.0,0.00016021,2]
[404303509,1770049846137,-885.68955508,0.00016021,2]
[404303510,1770049846147,-1000.0,0.00016021,2]
[404303511,1770049846157,-1000.0,0.00016021,2]
[404303512,1770049846167,-1000.0,0.00016021,2]
[404303513,1770049846177,-1000.0,0.00016021,2]
[404303514,1770049846188,-1000.0,0.00016021,2]
[404303515,1770049846198,-1000.0,0.00016021,2]
[404303516,1770049846207,-500.0,0.00016021,2]
[404303517,1770049846217,-1000.0,0.00016021,2]
[404303518,1770049846227,-1000.0,0.00016021,2]
[404303519,1770049846236,-1000.0,0.00016021,2]
[404303520,1770049846246,-1000.0,0.00016021,2]
[404303521,1770049846256,-194.71422031,0.00016021,2]
[404303522,1770049846266,-1000.0,0.00016021,2]
[404303523,1770049846277,-1000.0,0.00016021,2]
[404303524,1770049846287,-1000.0,0.00016021,2]
[404303525,1770049846297,-500.40903786,0.00016021,2]
[404303526,1770049846307,-1000.0,0.00016021,2]
[404303527,1770049846316,-1000.0,0.00016021,2]
[404303528,1770049846325,-1000.0,0.00016021,2]
[404303529,1770049846335,-500.0,0.0001608,2]
[404303530,1770049846344,-1000.0,0.000161,2]
[404303531,1770049846353,-868.9,0.00016116,2]
[404303533,1770049846362,-773.23,0.00016116,2]
[404303535,1770049846371,-266.83,0.00016128,2]
[404303537,1770049846381,-2500.0,0.00016164,2]
[404303539,1770049846391,-1607.21812372,0.00016164,2]
[404303541,1770049846401,-2139.05832686,0.00016164,2]
[404303543,1770049846411,-30029.94021378,0.00016166,2]
[404303545,1770049846421,-668.91463451,0.00016166,2]
[404303547,1770049846430,-12251.53771501,0.00016166,2]
[404303593,1770049846949,-736.01902198,0.00014266,2]
[404303594,1770049846961,-270.98097802,0.00014266,2]
[404303595,1770049846977,-745.67292935,0.00016166,2]
[404303596,1770049846989,-502.0,0.00016166,2]
[404303597,1770049847005,-8909.10913018,0.00016166,2]
[404303598,1770049847014,-1000.0,0.000162,2]
[404303599,1770049847025,-3064.32856183,0.000162,5]
[404303600,1770049847046,-431.76867135,0.000162,5]
[404303601,1770049847057,-339.9842,0.000162,5]
[404303602,1770049847070,-1163.92476437,0.000162,5]
[404303603,1770049847079,-1000.0,0.000163,2]
[404303604,1770049847089,-868.9,0.0001639,2]
[404303606,1770049847099,-773.23,0.0001639,2]
[404303609,1770049847108,-163.0,0.000164,2]
[404303611,1770049847117,-1000.0,0.000164,2]
[404303613,1770049847127,-1798.32260291,0.00016412,2]
[404303615,1770049847136,-468.85,0.00016415,2]
[404303618,1770049847145,-159.65843549,0.00016416,2]
[404303619,1770049847157,-1104.11419723,0.00016438,2]
[404303620,1770049847168,-511.2450525,0.00016438,2]
[404303621,1770049847245,-384.64075027,0.00016438,2]
[404303622,1770049847255,-245.5713503,0.00016438,2]
[404303623,1770049847266,-555.1844367,0.00016438,2]
[404303624,1770049847276,-43.4645633,0.00016473,2]
[404303625,1770049847286,-106.5354367,0.00016473,2]
[404303626,1770049847296,-196.1440761,0.00016473,2]
[404303627,1770049847307,-103.8559239,0.00016473,2]
[404303628,1770049847316,-500.0,0.00016473,2]
[404303629,1770049847325,-188.73267835,0.000165,2]
[404303630,1770049847336,-811.26732165,0.000165,2]
[404303631,1770049847345,-1600.0,0.00016522,2]
[404303632,1770049847354,-1000.0,0.00016568,2]
[404303633,1770049847363,-287.5401961,0.00016568,2]
[404303634,1770049847373,-1000.0,0.00016568,2]
[404303635,1770049847381,-1500.0,0.00016568,2]
[404303636,1770049847390,-1500.0,0.00016568,2]
[404303637,1770049847400,-63.28177572,0.00016568,2]
[404303638,1770049847411,-441.53685,0.00016568,2]
[404303639,1770049847477,-422.38499994,0.00016568,2]
[404303640,1770049847488,-74.31301161,0.00016568,2]
[404303641,1770049847498,-188.58698839,0.00016568,2]
[404303642,1770049847509,-349.39414213,0.00016568,2]
[404303643,1770049847518,-747.80555787,0.00016568,2]
[404303652,1770050270642,-162.15718318,0.00011766,2]
[404303653,1770050409926,4026.73,0.00011521,2]
[404303654,1770050421307,4000.0,0.000155,3]
[404303655,1770050451385,973.28,0.00011466,2]
[404303656,1770050451407,147.95,0.00011466,2]
[404303657,1770050471546,6000.0,0.000155,3]
[404303660,1770050488733,500.0,0.00011605,2]
[404303661,1770050493104,2665.925,0.0001158,2]
[404303662,1770050493141,235.002,0.0001158,2]
[404303663,1770050507815,338.59,0.00011605,2]
[404303664,1770050508072,338.59,0.00011636,2]
[404303665,1770050508298,338.59,0.00011666,2]
[404303666,1770050508537,338.59,0.00011697,2]
[404303667,1770050508780,244.723,0.00011727,2]
[404303668,1770050508802,93.867,0.00011727,2]
[404303669,1770050508990,338.59,0.00011758,2]
[404303670,1770050509321,338.59,0.00011789,2]
[404303671,1770050521837,150.0,0.00011815,2]
[404303672,1770050521874,300.0,0.00011815,2]
[404303673,1770050522677,300.0,0.00011815,2]
[404303674,1770050522760,300.0,0.00011815,2]
[404303675,1770050524467,230.25111398,0.00011716,2]
[404303676,1770050528597,2948.71188602,0.00011716,2]
[404303677,1770050528618,5000.01,0.00011716,2]
[404303678,1770050535273,-4400.01,0.00011716,2]
[404303679,1770050535358,-5000.01,0.00011716,2]
[404303680,1770050535420,-5000.01,0.00011716,2]
[404303681,1770050538048,-5000.01,0.00011716,2]
[404303682,1770050541086,-5000.01,0.00011716,2]
[404303683,1770050541212,-990.3291255,0.00011716,2]
[404303684,1770050544225,750.82968755,0.00011716,2]
[404303685,1770050564184,267.8288771,0.00011716,2]
[404303686,1770050577663,2000.69318435,0.00011716,2]
[404303687,1770050577686,169.54271755,0.00011716,2]
[404303688,1770050580061,2170.2359019,0.00011716,2]
[404303689,1770050580734,205.0150533,0.00011716,2]
[404303690,1770050593816,205.83607011,0.00011716,2]
[404303706,1770050654757,153.50074266,0.00011716,2]
[404303707,1770050664437,500.55312504,0.00011716,2]
[404303710,1770050694482,347.42,0.00011107,2]
[404303711,1770050714085,205.83607011,0.00011716,2]
[404303712,1770050721285,1042.07031933,0.00011716,2]
[404303713,1770050739373,-1980.658251,0.00011716,2]
[404303714,1770050742240,-5000.01,0.00011716,2]
[404303715,1770050748439,-5000.01,0.00011716,2]
[404303716,1770050750199,166.66,0.000114,2]
[404303717,1770050754330,-5000.01,0.00011716,2]
[404303719,1770050795768,-7188.02202725,0.00011716,2]
[404303720,1770050795793,-1627.67692646,0.00011716,2]
[404303721,1770050795818,-1627.67692646,0.00011716,2]
[404303722,1770050795844,-333.70208336,0.00011716,2]
[404303723,1770050795871,-306.30889535,0.00011746,2]
[404303724,1770050795897,-166.66,0.00011777,2]
[404303725,1770050795922,-150.0,0.00011788,2]
[404303726,1770050795947,-195.0,0.00011801,2]
[404303727,1770050795973,-1200.0,0.00011814,2]
[404303728,1770050795999,-150.0,0.00011814,2]
[404303729,1770050796025,-300.0,0.00011814,2]
[404303730,1770050796050,-300.0,0.00011815,2]
[404303731,1770050796077,-197.76192095,0.00011815,2]
[404303732,1770050796101,-175.69975447,0.00011815,2]
[404303733,1770050796127,-500.0,0.00011815,2]
[404303734,1770050796150,-500.0,0.00011815,2]
[404303735,1770050796178,-500.0,0.00011815,2]
[404303736,1770050796207,-500.0,0.00011815,2]
[404303737,1770050796235,-500.0,0.00011815,2]
[404303738,1770050796265,-630.66879796,0.00011815,2]
[404303739,1770050796293,-500.0,0.00011815,2]
[404303740,1770050796320,-500.0,0.00011815,2]
[404303741,1770050796346,-500.0,0.00011815,2]
[404303742,1770050796370,-500.0,0.00011815,2]
[404303743,1770050796394,-403.58140004,0.00011815,2]
[404303744,1770050796421,-500.0,0.00011815,2]
[404303745,1770050796448,-500.0,0.00011815,2]
[404303746,1770050796475,-500.0,0.00011815,2]
[404303747,1770050796501,-500.0,0.00011815,2]
[404303748,1770050796529,-500.0,0.00011815,2]
[404303749,1770050796556,-500.0,0.00011815,2]
[404303750,1770050796583,-500.0,0.00011815,2]
[404303751,1770050796611,-500.0,0.00011815,2]
[404303752,1770050796638,-500.0,0.00011815,2]
[404303753,1770050796666,-500.0,0.00011815,2]
[404303754,1770050796693,-500.0,0.00011815,2]
[404303755,1770050796719,-173.16513043,0.00011815,2]
[404303756,1770050796756,-500.0,0.00011815,2]
[404303757,1770050796784,-500.0,0.00011815,2]
[404303758,1770050796813,-500.0,0.00011815,2]
[404303759,1770050796841,-500.0,0.00011815,2]
[404303760,1770050796869,-500.0,0.00011815,2]
[404303761,1770050796896,-500.0,0.00011815,2]
[404303762,1770050796923,-500.0,0.00011815,2]
[404303763,1770050796951,-500.0,0.00011815,2]
[404303764,1770050796977,-500.0,0.00011815,2]
[404303765,1770050797004,-500.0,0.00011815,2]
[404303766,1770050797030,-500.0,0.00011815,2]
[404303767,1770050797056,-216.1338959,0.00011815,2]
[404303768,1770050797081,-500.0,0.00011815,2]
[404303769,1770050797109,-500.0,0.00011815,2]
[404303770,1770050797135,-500.0,0.00011815,2]